bitfinex/quotes_BTCUSD_20220204
["timestamp","ask_amount","ask_price","bid_price","bid_amount"]
[1643952366944,0.25649255,37597.0,37592.0,0.00092746]
[1643952366945,0.348046,37596.0,37592.0,0.00092746]
[1643952367196,0.25649255,37597.0,37594.0,0.00092744]
[1643952367400,1.28211985,37595.0,37594.0,0.00092744]
[1643952367899,0.58211985,37595.0,37594.0,0.00092744]
[1643952368094,0.348046,37595.0,37594.0,0.00092744]
[1643952368297,0.25649255,37597.0,37591.0,0.09617624]
[1643952368496,0.25649255,37597.0,37593.0,0.00092745]
[1643952368695,0.049,37596.0,37593.0,0.00092745]
[1643952369094,0.40688579,37594.0,37593.0,0.00092745]
[1643952369294,0.25649255,37597.0,37593.0,0.00092745]
[1643952369295,0.24172618,37595.0,37593.0,0.00092745]
[1643952369496,0.24172618,37595.0,37591.0,0.09617624]
[1643952369697,1.15116815,37593.0,37592.0,0.00092746]
[1643952369895,0.35116815,37593.0,37592.0,0.00092746]
[1643952370697,0.35116815,37593.0,37585.0,0.05]
[1643952370965,0.24172618,37595.0,37591.0,0.00092747]
[1643952370966,2.3872836,37592.0,37591.0,0.00092747]
[1643952371260,2.3872836,37592.0,37581.0,0.05]
[1643952371261,1.65,37591.0,37580.0,0.02015001]
[1643952371458,0.73443668,37590.0,37582.0,0.0002509]
[1643952371660,0.05,37589.0,37582.0,0.0002509]
[1643952371855,0.73443668,37588.0,37580.0,0.02040091]
[1643952372056,0.72472101,37586.0,37580.0,0.02040091]
[1643952372256,0.92647921,37581.0,37580.0,0.02015001]
[1643952373074,0.049,37581.0,37577.0,0.02106823]
[1643952373270,0.00054622,37587.0,37583.0,0.066519]
[1643952373470,0.00054622,37587.0,37582.0,0.133038]
[1643952373471,0.24833596,37587.0,37582.0,0.133038]
[1643952373671,0.049,37586.0,37582.0,0.133038]
[1643952373871,0.23461154,37584.0,37582.0,0.133038]
[1643952374071,0.049,37583.0,37582.0,0.133038]
[1643952374271,0.397046,37583.0,37582.0,0.22004625]
[1643952374471,0.04886776,37583.0,37582.0,0.22004625]
[1643952374713,0.04886776,37583.0,37581.0,0.0667789]
[1643952374916,0.04886776,37583.0,37580.0,0.02079714]
[1643952375115,0.348046,37582.0,37580.0,0.02079714]
[1643952375316,0.397046,37582.0,37580.0,0.02079714]
[1643952375717,0.397046,37582.0,37581.0,0.05]
[1643952375916,0.049,37582.0,37580.0,0.02079714]
[1643952376614,0.049,37582.0,37576.0,0.01929735]
[1643952376815,0.049,37582.0,37581.0,0.0815681]
[1643952377019,1.11906341,37596.0,37581.0,0.1315681]
[1643952377216,0.348046,37595.0,37586.0,0.05]
[1643952377415,0.049,37594.0,37582.0,0.25560094]
[1643952377617,0.049,37603.0,37589.0,0.05]
[1643952377817,0.3434552,37596.0,37594.0,0.07430791]
[1643952378016,0.348046,37595.0,37594.0,0.07430791]
[1643952378469,0.60166104,37595.0,37594.0,0.07430791]
[1643952378860,0.31287097,37590.0,37587.0,0.28551614]
[1643952379062,0.31287097,37590.0,37586.0,0.066506]
[1643952379461,0.31287097,37590.0,37583.0,0.18392412]
[1643952379962,0.23198373,37589.0,37584.0,0.09924046]
[1643952380163,0.31287097,37590.0,37584.0,0.09924046]
[1643952380367,0.31287097,37590.0,37585.0,0.132999]
[1643952380561,0.00092287,37588.0,37585.0,0.132999]
[1643952381565,0.19214243,37587.0,37585.0,0.132999]
[1643952381765,0.00092287,37588.0,37585.0,0.132999]
[1643952382613,0.25081435,37591.0,37585.0,0.132999]
[1643952382913,0.00092287,37588.0,37586.0,0.05]
[1643952383312,0.10204919,37601.0,37594.0,0.33310714]
[1643952383516,0.56739286,37599.0,37594.0,0.33310714]
[1643952383712,0.348046,37598.0,37594.0,0.33310714]
[1643952383913,0.62001095,37598.0,37594.0,0.33310714]
[1643952384413,0.57101095,37598.0,37594.0,0.33310714]
[1643952384612,0.57101095,37598.0,37595.0,0.08826375]
[1643952386367,0.57101095,37598.0,37594.0,0.33310714]
[1643952386572,0.57155685,37598.0,37594.0,0.33310714]
[1643952387265,0.62155685,37598.0,37594.0,0.33310714]
[1643952387465,0.348046,37596.0,37594.0,0.41497855]
[1643952387868,0.398046,37596.0,37594.0,0.41497855]
[1643952388067,1.298046,37595.0,37594.0,0.33310714]
[1643952389068,0.398046,37595.0,37594.0,0.33310714]
[1643952392015,0.32316407,37589.0,37586.0,0.2549678]
[1643952392216,0.32316407,37589.0,37582.0,0.32242134]
[1643952392416,0.02082051,37590.0,37585.0,0.08399168]
[1643952392615,0.00087023,37590.0,37587.0,0.05]
[1643952392817,0.00087023,37590.0,37586.0,0.27179257]
[1643952393461,0.2310884,37593.0,37586.0,0.27179257]
[1643952393657,0.00087024,37590.0,37586.0,0.27179257]
[1643952393857,0.00087024,37590.0,37587.0,0.05]
[1643952394458,0.21848364,37593.0,37587.0,0.05]
[1643952395061,0.21848364,37593.0,37592.0,0.07670007]
[1643952395459,0.21848364,37593.0,37585.0,0.26110022]
[1643952395663,0.21848364,37593.0,37583.0,0.02153135]
[1643952395860,0.21848364,37593.0,37583.0,0.02178225]
[1643952396061,0.0004937,37592.0,37583.0,0.02178225]
[1643952396261,0.05,37595.0,37594.0,0.01774378]
[1643952396460,0.66358396,37595.0,37594.0,0.01774378]
[1643952396664,1.08467187,37595.0,37594.0,0.01774378]
[1643952397212,1.32686395,37595.0,37594.0,0.01774378]
[1643952399813,1.27686395,37595.0,37594.0,0.01774378]
[1643952402857,1.32686395,37595.0,37594.0,0.01774378]
[1643952404812,1.08467187,37595.0,37594.0,0.01774378]
[1643952405012,0.98567187,37595.0,37594.0,0.01774378]
[1643952405213,0.398046,37595.0,37594.0,0.01774378]
[1643952406214,0.72963505,37595.0,37594.0,0.01774378]
[1643952409257,0.77863505,37595.0,37594.0,0.01774378]
[1643952409857,0.87863505,37595.0,37594.0,0.01774378]
[1643952411271,0.77863505,37595.0,37594.0,0.01774378]
[1643952412709,0.82863505,37595.0,37594.0,0.01774378]
[1643952414517,0.87863505,37595.0,37594.0,0.01774378]
[1643952414716,1.10682942,37595.0,37594.0,0.01774378]
[1643952415718,0.87863505,37595.0,37594.0,0.01774378]
[1643952420417,1.16420544,37595.0,37594.0,0.01774378]
[1643952420818,1.26420544,37595.0,37594.0,0.01774378]
[1643952422118,0.27261536,37588.0,37583.0,0.0002509]
[1643952422319,0.27261536,37588.0,37582.0,0.44260115]
[1643952422320,0.32261536,37588.0,37582.0,0.18525969]
[1643952422521,0.32261536,37588.0,37582.0,0.01934024]
[1643952422723,0.348046,37587.0,37582.0,0.10105518]
[1643952422919,0.21955354,37584.0,37582.0,0.01908934]
[1643952423219,0.30663815,37586.0,37583.0,0.05]
[1643952423465,0.65468415,37586.0,37585.0,0.05]
[1643952424360,0.30663815,37586.0,37585.0,0.05]
[1643952424659,0.65468415,37586.0,37585.0,0.05]
[1643952426863,0.70798415,37586.0,37584.0,0.00092331]
[1643952427068,1.998046,37585.0,37578.0,0.0002509]
[1643952427312,1.998046,37585.0,37577.0,0.00394484]
[1643952427313,0.38263171,37580.0,37577.0,0.00394484]
[1643952427514,1.45113497,37578.0,37577.0,0.00394484]
[1643952427711,1.45113497,37578.0,37577.0,0.00369394]
[1643952427712,0.89737205,37578.0,37577.0,0.00369394]
[1643952428311,0.89737205,37578.0,37575.0,0.0002509]
[1643952428511,0.348046,37577.0,37576.0,0.0009234]
[1643952428912,0.348046,37577.0,37576.0,0.0509234]
[1643952429513,0.348046,37577.0,37576.0,0.05]
[1643952430516,0.35638897,37578.0,37576.0,0.05]
[1643952430714,0.35638897,37578.0,37574.0,0.0002509]
[1643952430969,0.35638897,37578.0,37575.0,0.00092341]
[1643952431362,0.348046,37577.0,37575.0,0.00092341]
[1643952431964,0.348046,37577.0,37574.0,0.0002509]
[1643952432165,0.35638897,37578.0,37574.0,0.00092341]
[1643952432564,0.35638897,37578.0,37574.0,0.00117431]
[1643952433864,0.35638897,37578.0,37576.0,0.05]
[1643952434065,0.30308897,37578.0,37576.0,0.05]
[1643952435813,0.30308897,37578.0,37575.0,0.0009234]
[1643952435814,0.348046,37577.0,37575.0,0.0009234]
[1643952436212,0.94001841,37576.0,37575.0,0.0009234]
[1643952436411,0.348046,37577.0,37575.0,0.0009234]
[1643952436613,0.348046,37577.0,37573.0,0.0002509]
[1643952436811,0.30308897,37578.0,37574.0,0.00092341]
[1643952437513,0.47939464,37587.0,37577.0,0.05]
[1643952437514,0.25635,37587.0,37577.0,0.05]
[1643952437714,0.25635,37587.0,37574.0,0.10315341]
[1643952437715,0.348046,37584.0,37582.0,0.05]
[1643952437915,0.348046,37584.0,37583.0,0.05]
[1643952438317,0.348046,37584.0,37579.0,0.05117426]
[1643952438559,0.348046,37584.0,37580.0,0.0990016]
[1643952438560,0.36364521,37582.0,37580.0,0.0990016]
[1643952440966,0.36364521,37582.0,37581.0,0.05]
[1643952442209,0.2435308,37585.0,37581.0,0.29623546]
[1643952442210,0.05,37585.0,37581.0,0.29623546]
[1643952442411,0.05,37585.0,37584.0,0.05]
[1643952442610,0.398046,37585.0,37584.0,0.05]
[1643952442812,0.05,37585.0,37584.0,0.05]
[1643952443012,0.398046,37585.0,37584.0,0.05]
[1643952443211,0.73681645,37585.0,37584.0,0.05]
[1643952443615,0.73681645,37585.0,37583.0,0.00092333]
[1643952443813,0.73681645,37585.0,37581.0,0.0002509]
[1643952443814,0.38877045,37585.0,37584.0,0.05]
[1643952444013,0.73681645,37585.0,37584.0,0.05]
[1643952445973,0.348046,37584.0,37583.0,0.00092333]
[1643952446369,0.348046,37584.0,37581.0,0.0002509]
[1643952446668,0.348046,37584.0,37582.0,0.00092334]
[1643952446869,0.34797452,37584.0,37582.0,0.00092334]
[1643952447070,0.34797452,37584.0,37583.0,0.05]
[1643952447268,0.34797452,37584.0,37582.0,0.00092334]
[1643952447469,0.34797452,37584.0,37582.0,0.05]
[1643952449272,0.34797452,37584.0,37581.0,0.00117424]
[1643952449472,0.34797452,37584.0,37582.0,0.05]
[1643952450316,0.24640726,37583.0,37582.0,0.05]
[1643952450517,0.34797452,37584.0,37582.0,0.05]
[1643952451518,0.24355048,37583.0,37582.0,0.05]
[1643952453318,0.34797452,37584.0,37582.0,0.05]
[1643952453591,0.05,37583.0,37580.0,0.1490016]
[1643952453791,0.38877045,37585.0,37581.0,0.00117521]
[1643952453996,0.348069,37584.0,37581.0,0.00117521]
[1643952454791,0.348069,37584.0,37581.0,0.00025186]
[1643952454995,0.348069,37584.0,37581.0,0.00092335]
[1643952455493,0.348069,37584.0,37581.0,0.00117521]
[1643952455494,0.57793399,37584.0,37581.0,0.00117521]
[1643952455894,0.57793399,37584.0,37581.0,0.00025186]
[1643952456095,0.57793399,37584.0,37581.0,0.00092335]
[1643952456293,0.05,37583.0,37581.0,0.00092335]
[1643952456499,0.05,37583.0,37581.0,0.00117521]
[1643952456994,0.05,37583.0,37581.0,0.00092335]
[1643952457220,0.22986499,37584.0,37580.0,0.09925346]
[1643952457420,0.22986499,37584.0,37580.0,0.09992495]
[1643952457421,0.05,37583.0,37580.0,0.09992495]
[1643952457622,0.05,37583.0,37580.0,0.09492495]
[1643952458224,0.32744243,37583.0,37580.0,0.0940016]
[1643952458425,0.32744243,37583.0,37580.0,0.09438085]
[1643952459423,0.32744243,37583.0,37580.0,0.0940016]
[1643952459623,0.32744243,37583.0,37580.0,0.09438132]
[1643952460225,0.32744243,37583.0,37580.0,0.00037972]
[1643952460424,0.348069,37582.0,37580.0,0.00037972]
[1643952460623,1.25,37581.0,37576.0,0.00025186]
[1643952460824,0.05,37578.0,37573.0,0.00025186]
[1643952461090,0.05,37582.0,37573.0,0.00177099]
[1643952461289,0.05,37576.0,37573.0,0.00151913]
[1643952461492,0.05,37576.0,37574.0,0.08018563]
[1643952463391,0.05,37576.0,37574.0,0.14672063]
[1643952463591,0.37304567,37577.0,37574.0,0.14672063]
[1643952463791,0.37304567,37577.0,37574.0,0.14697249]
[1643952464594,0.05,37579.0,37575.0,0.06653]
[1643952464815,0.05,37579.0,37575.0,0.06678186]
[1643952465314,0.05,37580.0,37575.0,0.06678186]
[1643952465717,0.348069,37579.0,37576.0,0.06653]
[1643952465915,0.348069,37579.0,37576.0,0.06678186]
[1643952466115,0.05,37578.0,37576.0,0.06678186]
[1643952466315,0.348069,37577.0,37576.0,0.06653]
[1643952467118,0.05,37578.0,37576.0,0.06653]
[1643952467518,0.348069,37579.0,37576.0,0.06653]
[1643952467719,0.348069,37579.0,37576.0,0.06678186]
[1643952467919,0.05,37580.0,37576.0,0.06678186]
[1643952468120,0.05,37580.0,37576.0,0.27876797]
[1643952468320,0.05,37580.0,37578.0,0.066525]
[1643952469666,0.05,37580.0,37578.0,0.31116275]
[1643952469866,0.05,37580.0,37579.0,0.74916378]
[1643952470070,0.22867022,37589.0,37579.0,0.24916378]
[1643952470268,0.01900195,37590.0,37582.0,0.13304]
[1643952470467,0.01900195,37590.0,37582.0,0.0009238]
[1643952470669,0.01900195,37590.0,37584.0,0.25843058]
[1643952470868,0.00092357,37591.0,37584.0,0.25843058]
[1643952471068,0.00092357,37591.0,37584.0,0.25832763]
[1643952471469,0.30016724,37588.0,37579.0,0.20473497]
[1643952471668,0.30016724,37588.0,37586.0,0.00092376]
[1643952471867,0.00092362,37591.0,37587.0,0.14372238]
[1643952472073,0.348069,37590.0,37587.0,0.14372238]
[1643952473119,0.65005092,37590.0,37587.0,0.21023138]
[1643952473319,0.22867022,37596.0,37587.0,0.21023138]
[1643952473520,0.55242612,37597.0,37589.0,0.066502]
[1643952473719,0.348069,37596.0,37589.0,0.066502]
[1643952473920,0.05,37591.0,37589.0,0.066502]
[1643952474120,0.05,37591.0,37590.0,0.05]
[1643952474320,0.348069,37593.0,37589.0,0.066502]
[1643952474623,0.348069,37593.0,37590.0,0.066506]
[1643952474824,0.348069,37593.0,37590.0,0.116506]
[1643952475220,0.343069,37593.0,37590.0,0.116506]
[1643952475421,0.34399194,37593.0,37590.0,0.116506]
[1643952476071,0.05,37591.0,37590.0,0.05]
[1643952476272,0.398069,37591.0,37587.0,0.12721338]
[1643952476570,0.348069,37591.0,37587.0,0.12721338]
[1643952476770,0.3387393,37588.0,37587.0,0.05]
[1643952476972,0.3887393,37588.0,37587.0,0.05]
[1643952477371,0.7368063,37588.0,37584.0,0.183021]
[1643952477569,0.3887393,37588.0,37584.0,0.183021]
[1643952477969,0.63738499,37588.0,37584.0,0.183021]
[1643952478171,0.3887393,37588.0,37584.0,0.249536]
[1643952478569,0.3887393,37588.0,37584.0,0.32644355]
[1643952478769,0.3887393,37588.0,37584.0,0.27644355]
[1643952479570,0.53160405,37588.0,37584.0,0.133021]
[1643952479820,0.05,37586.0,37580.0,0.23247833]
[1643952480017,0.05,37583.0,37578.0,0.133043]
[1643952480219,0.05,37583.0,37580.0,0.00037833]
[1643952480719,0.05,37583.0,37581.0,0.08305251]
[1643952480918,0.05,37585.0,37581.0,0.08305251]
[1643952481317,0.7681327,37588.0,37581.0,0.08305251]
[1643952481521,0.05,37586.0,37581.0,0.08305251]
[1643952482118,0.7681327,37588.0,37581.0,0.08305251]
[1643952482119,0.05,37587.0,37581.0,0.08305251]
[1643952482520,0.05,37584.0,37580.0,0.06744462]
[1643952482724,0.00092346,37587.0,37580.0,0.00092362]
[1643952482922,0.05,37583.0,37580.0,0.00092362]
[1643952483222,0.36016234,37582.0,37580.0,0.00092362]
[1643952483471,0.36016234,37582.0,37580.0,0.09051332]
[1643952484466,0.0533,37585.0,37580.0,0.15703832]
[1643952484667,0.05,37585.0,37580.0,0.15703832]
[1643952484870,0.05,37585.0,37580.0,0.15796192]
[1643952485468,0.33958967,37586.0,37580.0,0.15796192]
[1643952485668,0.33958967,37586.0,37580.0,0.15796092]
[1643952485669,0.05,37584.0,37580.0,0.15796092]
[1643952485868,0.33958967,37586.0,37580.0,0.15703732]
[1643952486068,0.05,37584.0,37580.0,0.15796091]
[1643952486269,0.05,37585.0,37580.0,0.15796091]
[1643952487071,0.05,37585.0,37580.0,0.15703732]
[1643952487315,0.05,37585.0,37580.0,0.15796092]
[1643952487916,0.05422343,37587.0,37580.0,0.15796092]
[1643952488120,0.05,37583.0,37582.0,0.066519]
[1643952488516,0.05,37585.0,37583.0,0.066519]
[1643952489117,0.05422343,37587.0,37583.0,0.066519]
[1643952489118,0.05,37586.0,37583.0,0.066519]
[1643952489317,0.05422343,37587.0,37583.0,0.056519]
[1643952489516,0.05,37584.0,37583.0,0.056519]
[1643952489716,0.0533,37587.0,37583.0,0.056519]
[1643952489717,0.00092347,37587.0,37583.0,0.056519]
[1643952490719,1.56301879,37594.0,37585.0,0.26610791]
[1643952490720,0.05,37592.0,37585.0,0.26610791]
[1643952490986,0.348067,37591.0,37587.0,0.066506]
[1643952491171,0.05,37592.0,37587.0,0.066506]
[1643952492173,0.00092342,37591.0,37587.0,0.066506]
[1643952492371,0.00092342,37591.0,37587.0,0.133013]
[1643952492571,0.00092342,37591.0,37587.0,0.066506]
[1643952493172,0.05,37592.0,37587.0,0.066506]
[1643952493372,0.00092343,37591.0,37587.0,0.066506]
[1643952494273,0.05,37591.0,37587.0,0.19951]
[1643952494472,0.05,37591.0,37588.0,0.066509]
[1643952494724,0.05092343,37591.0,37589.0,0.066504]
[1643952494924,0.05092343,37591.0,37588.0,0.06650901]
[1643952495527,0.05,37591.0,37588.0,0.06650901]
[1643952495824,0.05092342,37591.0,37588.0,0.06650901]
[1643952496125,0.05092342,37591.0,37588.0,0.13301801]
[1643952496525,0.05092342,37591.0,37589.0,0.066504]
[1643952496825,0.05,37591.0,37589.0,0.066504]
[1643952497625,0.00092342,37592.0,37589.0,0.066504]
[1643952498026,0.31169038,37593.0,37589.0,0.066504]
[1643952498225,0.00092341,37592.0,37589.0,0.133008]
[1643952499168,0.31169038,37593.0,37589.0,0.133008]
[1643952501868,0.31261425,37593.0,37589.0,0.133008]
[1643952502339,0.31261425,37593.0,37589.0,0.066504]
[1643952502739,0.31169038,37593.0,37589.0,0.066504]
[1643952502941,0.31261425,37593.0,37589.0,0.066504]
[1643952503139,0.31261425,37593.0,37590.0,0.16292335]
[1643952503540,0.00092387,37593.0,37590.0,0.16292335]
[1643952503740,0.00092387,37593.0,37592.0,0.516495]
[1643952503941,0.02155317,37595.0,37592.0,0.166495]
[1643952504140,0.00092386,37594.0,37592.0,0.216495]
[1643952504540,0.00092386,37594.0,37592.0,0.47702907]
[1643952504739,0.00092386,37594.0,37592.0,0.216495]
[1643952504941,0.00092386,37594.0,37593.0,0.94883532]
[1643952505243,0.02055458,37599.0,37595.0,0.066487]
[1643952505640,0.02055458,37599.0,37596.0,0.24869852]
[1643952505842,0.02055458,37599.0,37597.0,0.09608646]
[1643952506074,0.02055458,37599.0,37597.0,0.14938646]
[1643952506273,0.01150664,37599.0,37597.0,0.14938646]
[1643952506476,0.01150664,37599.0,37598.0,0.00904794]
[1643952507074,0.01150664,37599.0,37598.0,0.27477118]
[1643952507474,0.01150664,37599.0,37598.0,0.34125618]
[1643952507977,0.01150664,37599.0,37598.0,0.44125618]
[1643952509475,0.001,37605.0,37600.0,0.132966]
[1643952509720,0.001,37605.0,37602.0,0.23259173]
[1643952509920,0.001,37605.0,37603.0,0.28120046]
[1643952510123,0.001,37605.0,37604.0,0.08263308]
[1643952512026,0.001,37605.0,37604.0,0.3435412]
[1643952512424,0.001,37609.0,37604.0,0.18263308]
[1643952512624,0.001,37609.0,37604.0,0.46383354]
[1643952512625,0.00092489,37606.0,37604.0,0.46383354]
[1643952512825,0.00092489,37606.0,37605.0,1.88389646]
[1643952513028,0.00092489,37606.0,37605.0,0.67468646]
[1643952513224,0.00092489,37606.0,37605.0,0.82468646]
[1643952513479,0.00469901,37612.0,37605.0,0.82468646]
[1643952513480,0.0022,37619.0,37613.0,0.27050399]
[1643952513676,0.0022,37619.0,37613.0,0.42918703]
[1643952513872,0.0522,37619.0,37613.0,0.25868304]
[1643952514172,0.0522,37619.0,37614.0,0.28120046]
[1643952514173,0.0022,37619.0,37614.0,0.28120046]
[1643952514372,0.2592772,37619.0,37615.0,0.0533]
[1643952514573,0.0511,37617.0,37615.0,0.0533]
[1643952516573,0.0011,37617.0,37615.0,0.0533]
[1643952517421,0.00202871,37617.0,37615.0,0.0533]
[1643952518225,0.0522,37616.0,37615.0,0.0533]
[1643952519222,0.0022,37616.0,37615.0,0.0533]
[1643952519422,0.0522,37616.0,37615.0,0.0533]
[1643952519622,0.0022,37616.0,37615.0,0.0533]
[1643952520024,0.0022,37616.0,37609.0,0.07856326]
[1643952520224,0.0022,37616.0,37612.0,0.0533]
[1643952521078,0.0022,37616.0,37613.0,0.066454]
[1643952521281,0.0022,37616.0,37613.0,0.116454]
[1643952521475,0.0022,37616.0,37613.0,0.18291]
[1643952521678,0.0022,37616.0,37613.0,0.249362]
[1643952522276,0.0527436,37616.0,37613.0,0.249362]
[1643952522679,0.0027436,37616.0,37613.0,0.249362]
[1643952523279,0.0022,37616.0,37613.0,0.249362]
[1643952523481,0.00312802,37616.0,37613.0,0.49691714]
[1643952523679,0.00312734,37616.0,37613.0,0.249362]
[1643952523880,0.00312734,37616.0,37613.0,0.349362]
[1643952524280,0.00312734,37616.0,37613.0,0.59770997]
[1643952524481,0.00219932,37616.0,37613.0,0.60003572]
[1643952524717,0.05312734,37616.0,37613.0,0.349362]
[1643952524917,0.05312734,37616.0,37613.0,0.05]
[1643952524918,1.4,37615.0,37613.0,0.05]
[1643952525121,1.4,37615.0,37611.0,0.00566137]
[1643952525122,0.05,37615.0,37611.0,0.00566137]
[1643952525720,0.05092804,37615.0,37611.0,0.00566137]
[1643952526124,0.05092804,37615.0,37611.0,0.07212337]
[1643952526321,0.05092804,37615.0,37611.0,0.12212337]
[1643952526720,0.05,37615.0,37611.0,0.12212337]
[1643952526920,0.05092804,37615.0,37611.0,0.12212337]
[1643952527922,0.00219932,37616.0,37611.0,0.12212337]
[1643952528136,0.00092804,37615.0,37611.0,0.17212337]
[1643952529168,0.00219932,37616.0,37611.0,0.17212337]
[1643952529370,0.00092804,37615.0,37611.0,0.17212337]
[1643952529768,0.00092804,37615.0,37611.0,0.12212337]
[1643952530369,0.00219932,37616.0,37611.0,0.07212337]
[1643952530569,0.05092804,37615.0,37611.0,0.066462]
[1643952530769,0.05092804,37615.0,37611.0,0.116462]
[1643952531376,0.00092804,37615.0,37611.0,0.116462]
[1643952531570,0.00219932,37616.0,37611.0,0.116462]
[1643952531771,0.00092804,37615.0,37611.0,0.166462]
[1643952531972,0.00092804,37615.0,37612.0,0.132913]
[1643952532823,0.00219932,37616.0,37612.0,0.132913]
[1643952533026,0.00092803,37615.0,37612.0,0.132913]
[1643952534028,0.00219932,37616.0,37612.0,0.132913]
[1643952534325,0.00092803,37615.0,37612.0,0.132913]
[1643952534725,0.00092803,37615.0,37613.0,0.066458]
[1643952535126,0.00219932,37616.0,37613.0,0.066458]
[1643952535324,0.00312735,37616.0,37613.0,0.066458]
[1643952535726,0.00312735,37616.0,37614.0,0.24614035]
[1643952536171,0.00312735,37616.0,37614.0,0.29614035]
[1643952536470,0.00219932,37616.0,37615.0,0.24521253]
[1643952536870,0.00219932,37616.0,37614.0,0.05]
[1643952537270,0.00219932,37616.0,37613.0,0.53244833]
[1643952537472,0.00219932,37616.0,37613.0,0.05]
[1643952537672,0.05,37615.0,37613.0,0.05]
[1643952537877,0.05,37615.0,37612.0,0.132913]
[1643952538076,0.277309,37616.0,37608.0,0.00092822]
[1643952538077,0.05,37613.0,37608.0,0.00092822]
[1643952538275,2.0451546,37609.0,37608.0,0.00092822]
[1643952538476,2.4465216,37609.0,37608.0,0.00092822]
[1643952538873,2.66159942,37609.0,37604.0,0.01804748]
[1643952539073,2.26353242,37609.0,37607.0,0.0003849]
[1643952539277,1.998067,37608.0,37607.0,0.0003849]
[1643952539474,2.051367,37608.0,37607.0,0.0003849]
[1643952539922,2.051367,37608.0,37598.0,0.005]
[1643952539923,0.451367,37608.0,37598.0,0.005]
[1643952540123,0.451367,37608.0,37596.0,0.79246633]
[1643952540124,0.05,37599.0,37596.0,0.02026633]
[1643952540326,0.27418166,37607.0,37596.0,0.02026633]
[1643952540327,1.648067,37597.0,37596.0,0.02026633]
[1643952540521,0.451367,37597.0,37596.0,0.02026633]
[1643952540923,0.451367,37597.0,37596.0,0.10304441]
[1643952541126,0.0533,37597.0,37596.0,0.10304441]
[1643952541927,0.0533,37597.0,37596.0,0.15304441]
[1643952543229,0.0533,37597.0,37596.0,0.13277808]
[1643952543475,0.0533,37597.0,37596.0,0.37685849]
[1643952543670,0.0533,37597.0,37596.0,0.13277808]
[1643952543871,0.0533,37597.0,37596.0,0.23277808]
[1643952544870,0.0533,37597.0,37596.0,0.08277808]
[1643952545071,0.0533,37597.0,37596.0,0.13277808]
[1643952545272,0.02799726,37598.0,37596.0,0.15478082]
[1643952545471,0.02799726,37598.0,37596.0,0.13277808]
[1643952545672,0.0533,37601.0,37597.0,0.08849274]
[1643952545874,0.0533,37601.0,37598.0,0.066485]
[1643952546075,0.02799726,37600.0,37598.0,0.066485]
[1643952546371,0.02799726,37600.0,37598.0,0.182969]
[1643952546872,0.02799726,37600.0,37598.0,0.132969]
[1643952547229,0.02799726,37600.0,37598.0,0.20497174]
[1643952547824,0.02799726,37600.0,37598.0,0.182969]
[1643952548426,0.31697843,37606.0,37599.0,0.26620126]
[1643952548627,0.02799726,37603.0,37602.0,0.08848374]
[1643952548826,0.0533,37606.0,37602.0,0.02200274]
[1643952549026,0.02799726,37605.0,37602.0,0.02200274]
[1643952549325,0.02799726,37603.0,37602.0,0.08053455]
[1643952551275,0.02799726,37603.0,37601.0,0.00038504]
[1643952551276,0.28613011,37603.0,37601.0,0.00038504]
[1643952552076,0.28613011,37603.0,37595.0,0.066494]
[1643952552278,0.25813285,37603.0,37600.0,0.00092907]
[1643952552477,0.02799726,37601.0,37600.0,0.08211537]
[1643952553280,0.02799726,37601.0,37600.0,0.0811863]
[1643952554925,0.16144351,37599.0,37597.0,0.06649]
[1643952555623,0.16144351,37599.0,37598.0,0.08131254]
[1643952556023,0.18944077,37599.0,37598.0,0.08131254]
[1643952556425,0.18944077,37599.0,37596.0,0.05]
[1643952556625,0.18944077,37599.0,37594.0,0.116498]
[1643952556826,0.16144351,37599.0,37594.0,0.066498]
[1643952557026,0.16144351,37599.0,37596.0,0.00092842]
[1643952557928,0.16144351,37599.0,37597.0,0.08787199]
[1643952558136,0.02799726,37598.0,37597.0,0.08787199]
[1643952564234,0.02799726,37598.0,37597.0,0.10987473]
[1643952564433,0.02799726,37598.0,37597.0,0.08787199]
[1643952566877,0.42936426,37598.0,37597.0,0.08787199]
[1643952567778,0.08129726,37598.0,37597.0,0.08787199]
[1643952568977,0.02799726,37598.0,37597.0,0.08787199]
[1643952572930,0.16144351,37599.0,37597.0,0.08787199]
[1643952573127,0.01799726,37598.0,37597.0,0.08787199]
[1643952574276,0.00081791,37598.0,37597.0,0.08787199]
[1643952576780,0.00081791,37598.0,37596.0,0.05]
[1643952577826,0.00081791,37598.0,37595.0,0.199467]
[1643952578027,0.16144351,37599.0,37597.0,0.08291679]
[1643952578230,0.00081791,37598.0,37597.0,0.08291679]
[1643952579529,0.00081791,37598.0,37595.0,0.199467]
[1643952579730,0.00081791,37598.0,37596.0,0.00081445]
[1643952580732,0.00081791,37598.0,37595.0,0.199467]
[1643952580989,0.00081791,37598.0,37595.0,0.1997921]
[1643952581481,0.00081791,37596.0,37595.0,0.1997921]
[1643952581681,0.00081791,37596.0,37595.0,0.0003251]
[1643952582083,0.00081791,37596.0,37594.0,0.08592646]
[1643952582280,0.00081791,37596.0,37594.0,0.08625157]
[1643952582480,0.29496007,37596.0,37594.0,0.00032511]
[1643952582680,0.55,37595.0,37594.0,0.00032511]
[1643952582884,0.29496007,37596.0,37594.0,0.00032511]
[1643952583081,0.29496007,37596.0,37594.0,0.06682811]
[1643952583286,0.29496007,37596.0,37594.0,0.066503]
[1643952583680,0.5555669,37596.0,37594.0,0.066503]
[1643952583881,0.38458692,37595.0,37594.0,0.066503]
[1643952584085,0.38458692,37595.0,37593.0,0.00032512]
[1643952584086,0.7995427,37595.0,37593.0,0.00032512]
[1643952584283,2.66458491,37594.0,37593.0,0.00032512]
[1643952584484,2.71788491,37594.0,37585.0,0.05]
[1643952584739,2.051367,37594.0,37592.0,0.00090786]
[1643952584939,0.00181572,37588.0,37586.0,0.003632]
[1643952585142,0.05411791,37587.0,37586.0,0.003632]
[1643952585540,0.05411791,37587.0,37585.0,0.133026]
[1643952591194,0.05411791,37587.0,37586.0,0.20897469]
[1643952591397,0.00081791,37587.0,37586.0,0.65529407]
[1643952591691,0.00081791,37587.0,37586.0,0.44631938]
[1643952592332,0.00081791,37587.0,37586.0,0.39713729]
[1643952592532,0.00081791,37587.0,37586.0,0.14624254]
[1643952592731,0.00081791,37587.0,37586.0,0.07919254]